bitfinex-derivatives/quotes_BTCF0:USTF0_20241226
["timestamp","ask_amount","ask_price","bid_price","bid_amount"]
[1735203889585,0.16026818,95812.0,95792.0,0.002]
[1735203889586,0.041791,95794.0,95792.0,0.002]
[1735203891780,0.05080161,95793.0,95792.0,0.002]
[1735203892684,0.05080161,95793.0,95792.0,0.001]
[1735203892886,0.05080161,95793.0,95792.0,0.002]
[1735203894093,0.041791,95796.0,95792.0,0.002]
[1735203894478,0.041792,95794.0,95792.0,0.002]
[1735203895093,0.041792,95794.0,95792.0,0.001]
[1735203895286,0.041792,95794.0,95792.0,0.002]
[1735203896588,0.0764,95798.0,95768.0,0.24984352]
[1735203896889,0.041801,95772.0,95768.0,0.24984352]
[1735203897096,0.041801,95772.0,95764.0,0.24984352]
[1735203897984,0.041801,95772.0,95768.0,0.005]
[1735203898185,0.042801,95772.0,95768.0,0.005]
[1735203898588,0.12332617,95770.0,95768.0,0.005]
[1735203898894,0.12332617,95770.0,95765.0,0.041804]
[1735203899392,0.16512817,95770.0,95765.0,0.041804]
[1735203899600,0.16512817,95770.0,95768.0,0.005]
[1735203899788,0.12332617,95769.0,95768.0,0.005]
[1735203899995,0.12332617,95769.0,95768.0,0.046803]
[1735203900985,0.001,95770.0,95768.0,0.046803]
[1735203901191,0.001,95770.0,95768.0,0.041803]
[1735203901192,0.001,95769.0,95768.0,0.041803]
[1735203902089,0.002,95769.0,95768.0,0.046803]
[1735203904298,0.18504289,95790.0,95772.0,0.041801]
[1735203904486,0.18504289,95790.0,95788.0,0.041794]
[1735203906194,0.18504289,95790.0,95773.0,0.1629]
[1735203906195,0.00896789,95791.0,95790.0,0.041793]
[1735203906379,0.04179,95797.0,95791.0,0.041792]
[1735203906586,0.05084361,95797.0,95791.0,0.041792]
[1735203908185,0.05084361,95797.0,95791.0,0.042792]
[1735203908587,0.05084361,95797.0,95791.0,0.044792]
[1735203909091,0.18504289,95807.0,95806.0,0.041786]
[1735203909285,0.18504289,95807.0,95791.0,0.003]
[1735203909491,0.041791,95796.0,95791.0,0.003]
[1735203910089,0.041791,95796.0,95791.0,0.001]
[1735203910597,0.041791,95796.0,95789.0,0.041793]
[1735203910896,0.041791,95796.0,95791.0,0.001]
[1735203911286,0.041791,95796.0,95791.0,0.002]
[1735203911681,0.05070914,95796.0,95791.0,0.001]
[1735203913292,0.05070914,95796.0,95791.0,0.002]
[1735203913890,0.00891814,95796.0,95795.0,0.041791]
[1735203914087,0.15415672,95798.0,95797.0,0.04179]
[1735203914286,0.18504289,95801.0,95791.0,0.002]
[1735203914493,0.18504289,95801.0,95799.0,0.041789]
[1735203915400,0.15429633,95807.0,95791.0,0.00987066]
[1735203915600,0.15429633,95807.0,95801.0,0.041788]
[1735203915803,0.15429633,95807.0,95791.0,0.00987066]
[1735203915804,0.15429633,95807.0,95803.0,0.041787]
[1735203916294,0.15429633,95807.0,95797.0,0.001]
[1735203916491,0.15429633,95805.0,95797.0,0.001]
[1735203916696,0.001,95801.0,95795.0,0.04179]
[1735203917090,0.001,95801.0,95797.0,0.04179]
[1735203917488,0.001,95801.0,95780.0,0.10476328]
[1735203917787,0.001,95801.0,95799.0,0.041789]
[1735203917992,0.15429633,95803.0,95799.0,0.041789]
[1735203918294,0.15429633,95803.0,95795.0,0.001]
[1735203918492,0.15429633,95803.0,95802.0,0.041788]
[1735203918790,0.15429633,95806.0,95802.0,0.041788]
[1735203919199,0.15429633,95806.0,95805.0,0.041786]
[1735203920201,0.15429633,95809.0,95808.0,0.041785]
[1735203921299,0.15429633,95820.0,95799.0,0.10476328]
[1735203921499,0.15429633,95820.0,95810.0,0.041784]
[1735203921998,0.15429633,95820.0,95812.0,0.041783]
[1735203922502,0.23509372,95821.0,95812.0,0.041783]
[1735203923095,0.006,95820.0,95812.0,0.041783]
[1735203923496,0.001,95820.0,95812.0,0.041783]
[1735203923899,0.08979739,95821.0,95812.0,0.041783]
[1735203924199,0.006,95820.0,95812.0,0.041783]
[1735203924693,0.009,95820.0,95812.0,0.041783]
[1735203928898,0.009,95820.0,95812.0,0.05107014]
[1735203929702,0.009,95820.0,95797.0,0.143]
[1735203929915,0.11376328,95820.0,95797.0,0.0696]
[1735203930207,0.041789,95799.0,95791.0,0.041792]
[1735203930411,0.04179,95796.0,95785.0,0.041795]
[1735203930609,0.1454,95798.0,95785.0,0.041795]
[1735203930812,0.10476328,95795.0,95785.0,0.041795]
[1735203931108,0.10476328,95795.0,95776.0,0.35307821]
[1735203931308,0.041794,95787.0,95776.0,0.35307821]
[1735203931900,0.041796,95784.0,95776.0,0.35307821]
[1735203932107,0.041796,95784.0,95776.0,0.31127921]
[1735203932304,0.0711,95783.0,95769.0,0.042362]
[1735203932509,0.14656128,95779.0,95769.0,0.041802]
[1735203933521,0.14656128,95779.0,95769.0,0.046802]
[1735203934213,0.14756128,95779.0,95769.0,0.046802]
[1735203934611,0.041798,95778.0,95769.0,0.046802]
[1735203935011,0.10576328,95779.0,95774.0,0.0418]
[1735203935606,0.10676328,95779.0,95774.0,0.0418]
[1735203935806,0.10576328,95779.0,95774.0,0.0418]
[1735203936106,0.001,95778.0,95774.0,0.0418]
[1735203936713,0.10576328,95779.0,95774.0,0.0418]
[1735203936915,0.10576328,95779.0,95774.0,0.0458]
[1735203937305,0.001,95778.0,95774.0,0.0458]
[1735203937507,0.001,95778.0,95774.0,0.0418]
[1735203937710,0.001,95778.0,95774.0,0.0458]
[1735203938920,0.001,95779.0,95778.0,0.041798]
[1735203939811,0.15429633,95788.0,95778.0,0.041798]
[1735203940012,0.15429633,95788.0,95787.0,0.041794]
[1735203940912,0.10476328,95800.0,95797.0,0.04179]
[1735203941118,0.00895797,95801.0,95797.0,0.04179]
[1735203941417,0.041787,95804.0,95787.0,0.00930766]
[1735203941610,0.041787,95804.0,95778.0,0.15056128]
[1735203941611,0.05107171,95804.0,95798.0,0.041789]
[1735203941812,0.05107171,95804.0,95778.0,0.15957248]
[1735203942013,0.05107171,95804.0,95799.0,0.041789]
[1735203942613,0.05207171,95804.0,95799.0,0.041789]
[1735203943006,0.01028471,95804.0,95799.0,0.041789]
[1735203943207,0.00928471,95804.0,95799.0,0.041789]
[1735203943415,0.15429633,95807.0,95799.0,0.041789]
[1735203943717,0.001,95804.0,95799.0,0.041789]
[1735203945714,0.16458104,95807.0,95799.0,0.041789]
[1735203946207,0.16458104,95807.0,95791.0,0.00903048]
[1735203946512,0.16458104,95807.0,95790.0,0.10476328]
[1735203946513,0.001,95804.0,95800.0,0.041788]
[1735203947219,0.16458104,95807.0,95800.0,0.041788]
[1735203949120,0.16558104,95807.0,95800.0,0.041788]
[1735203949521,0.001,95804.0,95800.0,0.041788]
[1735203950209,0.16458104,95807.0,95800.0,0.041788]
[1735203950413,0.16558104,95807.0,95800.0,0.041788]
[1735203951719,0.16458104,95807.0,95800.0,0.041788]
[1735203952021,0.001,95804.0,95800.0,0.041788]
[1735203952207,0.002,95804.0,95800.0,0.041788]
[1735203952713,0.15429633,95806.0,95800.0,0.041788]
[1735203953219,0.001,95804.0,95800.0,0.041788]
[1735203953612,0.002,95804.0,95800.0,0.041788]
[1735203954121,0.002,95804.0,95793.0,0.041792]
[1735203954321,0.002,95804.0,95799.0,0.041789]
[1735203954820,0.001,95804.0,95802.0,0.041787]
[1735203955326,0.15429633,95805.0,95804.0,0.041787]
[1735203955823,0.00928471,95807.0,95804.0,0.041787]
[1735203956023,0.15429633,95809.0,95805.0,0.041786]
[1735203956818,0.002,95807.0,95805.0,0.041786]
[1735203958426,0.15629633,95809.0,95805.0,0.041786]
[1735203958725,0.15929633,95809.0,95805.0,0.041786]
[1735203959225,0.002,95807.0,95805.0,0.041786]
[1735203959428,0.005,95807.0,95805.0,0.041786]
[1735203959931,0.003,95807.0,95805.0,0.041786]
[1735203961115,0.15729633,95807.0,95805.0,0.041786]
[1735203961421,0.041795,95785.0,95766.0,0.37393544]
[1735203961626,0.041795,95785.0,95772.0,0.35308021]
[1735203961922,0.0695,95784.0,95772.0,0.35308021]
[1735203962325,0.12030491,95784.0,95772.0,0.041801]
[1735203962627,0.16210091,95784.0,95783.0,0.003]
[1735203963328,0.16310091,95784.0,95783.0,0.003]
[1735203965629,0.05180491,95784.0,95783.0,0.003]
[1735203966132,0.05180491,95784.0,95783.0,0.2104]
[1735203968027,0.18504289,95789.0,95788.0,0.041794]
[1735203968028,0.18404289,95789.0,95788.0,0.041794]
[1735203968231,0.12351926,95793.0,95792.0,0.041792]
[1735203969233,0.041793,95791.0,95788.0,0.002]
[1735203969425,0.12351926,95793.0,95788.0,0.002]
[1735203969633,0.041793,95789.0,95788.0,0.002]
[1735203970324,0.15090377,95798.0,95784.0,0.18746112]
[1735203970529,0.041795,95785.0,95784.0,0.07596112]
[1735203971237,0.041797,95781.0,95769.0,0.00056]
[1735203971438,0.041797,95781.0,95770.0,0.041801]
[1735203972135,0.041797,95781.0,95772.0,0.041801]
[1735203972321,0.041797,95781.0,95748.0,0.37393544]
[1735203972322,0.12355721,95774.0,95773.0,0.0418]
[1735203973737,0.12355721,95775.0,95773.0,0.0418]
[1735203974135,0.001,95774.0,95773.0,0.0428]
[1735203974641,0.001,95774.0,95773.0,0.0468]
[1735203975035,0.001,95775.0,95773.0,0.0468]
[1735203975541,0.12355721,95776.0,95773.0,0.0458]
[1735203975742,0.001,95774.0,95773.0,0.0468]
[1735203977142,0.001,95775.0,95773.0,0.0448]
[1735203977937,0.001,95774.0,95773.0,0.0448]
[1735203978234,0.001,95774.0,95773.0,0.0438]
[1735203978436,0.001,95775.0,95774.0,0.0418]
[1735203980033,0.12355721,95777.0,95774.0,0.0418]
[1735203980637,0.12355721,95777.0,95774.0,0.0438]
[1735203980842,0.001,95775.0,95774.0,0.0448]
[1735203981329,0.001,95775.0,95774.0,0.0438]
[1735203981528,0.1353,95776.0,95774.0,0.0448]
[1735203982733,0.1353,95776.0,95774.0,0.0428]
[1735203982942,0.1353,95776.0,95774.0,0.0438]
[1735203983141,0.001,95775.0,95774.0,0.003]
[1735203983442,0.1353,95776.0,95774.0,0.002]
[1735203983640,0.1363,95776.0,95774.0,0.003]
[1735203986752,0.1363,95776.0,95774.0,0.002]
[1735203989436,0.1363,95776.0,95755.0,0.041808]
[1735203989652,0.1363,95776.0,95748.0,0.24984352]
[1735203989653,0.04181,95752.0,95748.0,0.24984352]
[1735203989847,0.041811,95750.0,95748.0,0.24984352]
[1735203990852,0.041813,95746.0,95742.0,0.31127921]
[1735203991248,0.25011,95751.0,95742.0,0.31127921]
[1735203991449,0.072,95751.0,95742.0,0.31127921]
[1735203991648,0.072,95751.0,95749.0,0.041811]
[1735203992157,0.001,95752.0,95751.0,0.04181]
[1735203992540,0.18510835,95755.0,95754.0,0.041809]
[1735203993144,0.00944711,95762.0,95755.0,0.041808]
[1735203993145,0.09238828,95757.0,95755.0,0.041808]
[1735203994350,0.09238828,95760.0,95759.0,0.041807]
[1735203994555,0.00392028,95760.0,95759.0,0.041807]
[1735203994750,0.12318437,95765.0,95764.0,0.041804]
[1735203994950,0.01139937,95765.0,95764.0,0.041804]
[1735203995751,0.15398047,95787.0,95754.0,0.001]
[1735203995952,0.15398047,95787.0,95785.0,0.041795]
[1735203996260,0.16365408,95787.0,95785.0,0.041795]
[1735203997259,0.00967361,95787.0,95785.0,0.041795]
[1735203997456,0.15398047,95793.0,95792.0,0.041792]
[1735203998557,0.00985313,95793.0,95792.0,0.041792]
[1735203998761,0.15398047,95800.0,95792.0,0.041792]
[1735203999150,0.15398047,95800.0,95770.0,0.10476328]
[1735203999151,0.002,95793.0,95770.0,0.10476328]
[1735203999355,0.002,95793.0,95779.0,0.059]
[1735203999553,0.004,95793.0,95792.0,0.041792]
[1735203999754,0.002,95793.0,95792.0,0.041792]
[1735203999953,0.15398047,95796.0,95792.0,0.041792]
[1735204000156,0.15398047,95796.0,95779.0,0.059]
[1735204000353,0.15398047,95796.0,95792.0,0.041792]
[1735204000666,0.002,95793.0,95792.0,0.041792]
[1735204001851,0.004,95793.0,95792.0,0.041792]
[1735204002256,0.002,95793.0,95792.0,0.041792]
[1735204002865,0.004,95793.0,95792.0,0.041792]
[1735204004656,0.15398047,95798.0,95797.0,0.04179]
[1735204006370,0.00954188,95800.0,95798.0,0.041789]
[1735204006667,0.041785,95808.0,95800.0,0.041788]
[1735204006859,0.041785,95808.0,95801.0,0.041788]
[1735204007464,0.041785,95808.0,95802.0,0.041788]
[1735204008371,0.001,95800.0,95793.0,0.1852]
[1735204008561,0.001,95800.0,95799.0,0.041789]
[1735204009266,0.0107047,95808.0,95800.0,0.041788]
[1735204009463,0.041786,95807.0,95800.0,0.041788]
[1735204009664,0.0589,95806.0,95800.0,0.041788]
[1735204010760,0.0589,95806.0,95780.0,0.10476328]
[1735204010971,0.10476328,95800.0,95794.0,0.041791]
[1735204011168,0.10476328,95800.0,95796.0,0.04179]
[1735204011364,0.101987,95805.0,95796.0,0.04179]
[1735204012467,0.101987,95805.0,95798.0,0.041789]
[1735204012870,0.102987,95805.0,95798.0,0.041789]
[1735204014674,0.001,95805.0,95799.0,0.041789]
[1735204015372,0.001,95805.0,95790.0,0.10476328]
[1735204015673,0.001,95805.0,95803.0,0.041787]
[1735204015863,0.16368517,95808.0,95805.0,0.041786]
[1735204017272,0.0097047,95808.0,95806.0,0.041786]
[1735204017474,0.15398047,95811.0,95810.0,0.041784]
[1735204018762,0.15398047,95825.0,95824.0,0.041778]
[1735204020268,0.15398047,95825.0,95810.0,0.14654728]
[1735204020269,0.15398047,95834.0,95833.0,0.041774]
[1735204021372,0.05468047,95834.0,95833.0,0.041774]
[1735204021678,0.008,95834.0,95833.0,0.042774]
[1735204021880,0.017,95834.0,95833.0,0.042774]
[1735204023165,0.017,95834.0,95833.0,0.001]
[1735204023868,0.0769,95834.0,95804.0,0.31127921]
[1735204024071,0.10476328,95814.0,95804.0,0.31127921]
[1735204024386,0.0599,95813.0,95804.0,0.31127921]
[1735204024580,0.041781,95818.0,95807.0,0.041785]
[1735204025880,0.041781,95818.0,95797.0,0.00966888]
[1735204026080,0.041781,95818.0,95809.0,0.041785]
[1735204026385,0.004,95818.0,95808.0,0.10476328]
[1735204026682,0.004,95818.0,95817.0,0.041781]
[1735204026880,0.003,95818.0,95817.0,0.041781]
[1735204027474,0.18510835,95836.0,95809.0,0.1276]
[1735204027673,0.003,95818.0,95817.0,0.041781]
[1735204028283,0.00975728,95839.0,95809.0,0.13746983]
[1735204028585,0.01,95818.0,95817.0,0.042781]
[1735204029171,0.013,95818.0,95817.0,0.042781]
[1735204029773,0.008,95818.0,95817.0,0.041781]
[1735204030673,0.012,95818.0,95817.0,0.041781]
[1735204035085,0.00982867,95840.0,95809.0,0.13746983]
[1735204035289,0.18510835,95854.0,95830.0,0.10476328]
[1735204035493,0.18510835,95854.0,95841.0,0.041771]
[1735204035682,0.103867,95849.0,95831.0,0.0649]
[1735204035881,0.103867,95849.0,95844.0,0.041769]
[1735204036391,0.041768,95847.0,95844.0,0.041769]
[1735204036887,0.041771,95842.0,95810.0,0.10476328]
[1735204037092,0.10476328,95840.0,95835.0,0.041773]
[1735204037288,0.10476328,95840.0,95836.0,0.041773]
[1735204037590,0.10476328,95840.0,95838.0,0.041772]
[1735204038095,0.0653,95841.0,95838.0,0.041772]
[1735204038585,0.0653,95841.0,95813.0,0.041783]
[1735204038894,0.009,95840.0,95839.0,0.041771]
[1735204039393,0.008,95847.0,95830.0,0.10476328]
[1735204039594,0.008,95847.0,95827.0,0.041776]
[1735204039595,0.008,95847.0,95844.0,0.041769]
[1735204039988,0.008,95847.0,95845.0,0.041769]
[1735204040294,0.017,95840.0,95839.0,0.043772]
[1735204040777,0.009,95840.0,95839.0,0.042772]
[1735204042293,0.18510835,95859.0,95858.0,0.041763]
[1735204042690,0.19523786,95859.0,95858.0,0.041763]
[1735204043284,0.01012951,95859.0,95858.0,0.041763]
[1735204043485,0.25030835,95876.0,95849.0,0.10476328]
[1735204043792,0.25030835,95876.0,95875.0,0.041756]
[1735204044700,0.25330835,95876.0,95867.0,0.041759]
[1735204044901,0.0682,95876.0,95851.0,0.041766]
[1735204045193,0.0772,95876.0,95875.0,0.001]
[1735204045979,0.0772,95876.0,95853.0,0.041765]
[1735204046187,0.0662,95876.0,95872.0,0.041757]
[1735204047798,0.0732,95876.0,95875.0,0.001]
[1735204048093,0.08311428,95876.0,95875.0,0.001]
[1735204048395,0.041757,95873.0,95872.0,0.001]
[1735204048997,0.041757,95873.0,95867.0,0.041759]
[1735204049596,0.048757,95873.0,95872.0,0.001]
[1735204050401,0.051757,95873.0,95872.0,0.001]
[1735204050909,0.007,95873.0,95872.0,0.042757]
[1735204051089,0.011,95873.0,95872.0,0.041757]
[1735204051690,0.011,95873.0,95872.0,0.042757]
[1735204060395,0.10412413,95877.0,95876.0,0.041756]
[1735204060598,0.10412413,95879.0,95878.0,0.041755]
[1735204061897,0.008,95879.0,95878.0,0.042755]
[1735204062811,0.009,95879.0,95878.0,0.042755]
[1735204063412,0.001,95879.0,95878.0,0.041755]
[1735204065508,0.001,95879.0,95878.0,0.05149145]
[1735204076619,1e-06,95879.0,95878.0,0.05149145]
[1735204081124,0.300001,95879.0,95863.0,0.24920814]
[1735204081321,0.29326328,95878.0,95863.0,0.24920814]
[1735204081514,0.29326328,95878.0,95863.0,0.19247214]
[1735204081712,0.1885,95878.0,95863.0,0.15070814]
[1735204082025,0.041758,95877.0,95871.0,0.04176]
[1735204082213,0.1885,95878.0,95863.0,0.15070814]
[1735204082415,0.05074338,95877.0,95876.0,0.041759]
[1735204083920,0.05074338,95877.0,95876.0,0.042759]
[1735204084724,0.0612,95899.0,95880.0,0.041757]
[1735204084725,0.15469574,95881.0,95880.0,0.041757]
[1735204085225,0.04609074,95881.0,95880.0,0.041757]
[1735204085434,7.4e-07,95881.0,95880.0,0.041757]
[1735204086130,0.041743,95912.0,95880.0,0.041757]
[1735204086131,0.18563488,95897.0,95887.0,0.041754]
[1735204086321,0.18563488,95897.0,95896.0,0.04175]
[1735204087529,0.19463488,95897.0,95896.0,0.04275]
[1735204087733,0.01,95897.0,95896.0,0.04275]
[1735204088322,0.009,95897.0,95896.0,0.04275]
[1735204088632,0.06073981,95897.0,95896.0,0.04275]
[1735204090426,0.21503069,95914.0,95901.0,0.041748]
[1735204090623,0.21503069,95914.0,95913.0,0.041742]
[1735204091527,0.21503069,95929.0,95928.0,0.041736]
[1735204092621,0.21503069,95929.0,95928.0,0.042736]
[1735204092818,0.01026454,95941.0,95928.0,0.001]
[1735204093023,0.14648928,95950.0,95939.0,0.041731]
[1735204093324,0.07077846,95945.0,95939.0,0.041731]
[1735204094239,0.04173,95943.0,95931.0,0.041735]
[1735204094527,0.5689191,95981.0,95939.0,0.001]
[1735204094720,0.041729,95945.0,95939.0,0.001]
[1735204094925,0.04173,95943.0,95939.0,0.001]
[1735204095129,0.04173,95943.0,95939.0,0.002]
[1735204095328,0.34173,95943.0,95939.0,0.001]
[1735204095631,0.04173,95943.0,95939.0,0.001]
[1735204095934,0.10476328,95950.0,95939.0,0.001]
[1735204096116,0.3,95950.0,95938.0,0.041731]
[1735204096320,0.3,95950.0,95939.0,0.042731]
[1735204096526,0.041726,95951.0,95939.0,0.042731]
[1735204096728,0.041726,95951.0,95940.0,0.04173]
[1735204097320,0.05156057,95951.0,95940.0,0.04173]
[1735204097735,0.1855,95950.0,95940.0,0.04173]
[1735204098230,0.041727,95949.0,95940.0,0.04173]
[1735204098433,0.041728,95946.0,95940.0,0.001]
[1735204098632,0.59026328,95950.0,95940.0,0.001]
[1735204098935,0.59026328,95950.0,95926.0,0.041737]
[1735204099127,0.1855,95950.0,95940.0,0.001]
[1735204099329,0.041729,95944.0,95940.0,0.001]
[1735204099529,0.1855,95950.0,95938.0,0.041731]
[1735204099832,0.1855,95950.0,95940.0,0.001]
[1735204100030,0.29026328,95950.0,95941.0,0.04173]
[1735204100234,0.1855,95950.0,95946.0,0.041728]
[1735204100541,0.1855,95950.0,95940.0,0.001]
[1735204100837,0.227227,95950.0,95940.0,0.042731]
[1735204101134,0.33199028,95950.0,95940.0,0.042731]
[1735204101931,0.041727,95949.0,95940.0,0.042731]
[1735204102431,0.041727,95949.0,95942.0,0.04173]
[1735204103631,0.00096001,95950.0,95940.0,0.001]
[1735204103940,0.00983457,95951.0,95948.0,0.041727]
[1735204104233,0.041724,95957.0,95948.0,0.041727]
[1735204104437,0.041724,95956.0,95948.0,0.041727]
[1735204105040,0.11479349,95960.0,95940.0,0.001]
[1735204105339,0.041726,95952.0,95948.0,0.001]
[1735204105737,0.041726,95952.0,95943.0,0.041729]
[1735204105939,0.041726,95952.0,95948.0,0.001]
[1735204107334,0.041726,95952.0,95944.0,0.041729]
[1735204107531,0.05175221,95960.0,95951.0,0.041726]
[1735204107725,0.041722,95960.0,95951.0,0.04163872]
[1735204107930,0.041722,95960.0,95952.0,0.041725]
[1735204108138,0.1247,95969.0,95955.0,0.041724]
[1735204108742,0.13478274,95969.0,95949.0,0.0641]
[1735204108928,0.14648528,95960.0,95949.0,0.0641]
[1735204109133,0.14648528,95960.0,95952.0,0.001]
[1735204109832,0.041722,95960.0,95954.0,0.041724]
[1735204110033,0.13478274,95969.0,95952.0,0.001]
[1735204110232,0.041719,95967.0,95960.0,0.041722]
[1735204111437,0.041719,95967.0,95950.0,0.10978528]
[1735204111642,0.041719,95967.0,95953.0,0.0626]
[1735204111939,0.041719,95967.0,95960.0,0.001]
[1735204112141,0.041719,95967.0,95960.0,0.042722]
[1735204113434,0.04172,95965.0,95960.0,0.001]
[1735204113636,0.041721,95963.0,95955.0,0.041724]
[1735204114240,0.041721,95963.0,95960.0,0.001]
[1735204114641,0.041721,95962.0,95960.0,0.001]
[1735204114832,0.041721,95962.0,95955.0,0.041724]
[1735204114833,0.01008274,95969.0,95955.0,0.001]
[1735204115039,0.041723,95957.0,95927.0,0.22914308]
[1735204115236,0.041735,95928.0,95927.0,0.18740808]
[1735204116245,0.041735,95928.0,95926.0,0.00156374]
[1735204117033,0.09250712,95929.0,95926.0,0.00156374]
[1735204117229,0.09250712,95928.0,95926.0,0.04329874]
[1735204117749,0.09250712,95928.0,95926.0,0.04429874]
[1735204118050,0.09250712,95928.0,95926.0,0.04329874]
[1735204118232,0.09250712,95928.0,95926.0,0.04429874]
[1735204118838,0.09250712,95932.0,95926.0,0.04429874]
[1735204120241,0.041732,95935.0,95926.0,0.04429874]
[1735204121537,0.12370626,95929.0,95926.0,0.04429874]
[1735204121749,0.12370626,95929.0,95926.0,0.04529874]
[1735204122853,0.12370626,95928.0,95926.0,0.04529874]
[1735204123253,0.12370626,95928.0,95926.0,0.04429874]
[1735204123647,0.12370626,95928.0,95926.0,0.00256374]
[1735204124153,0.041736,95927.0,95926.0,0.00156374]
[1735204124355,0.041736,95927.0,95926.0,0.00256374]
[1735204124966,0.12370626,95928.0,95926.0,0.00256374]
[1735204125472,0.15429375,95928.0,95926.0,0.00256374]
[1735204126667,0.041734,95933.0,95926.0,0.04430074]
[1735204126668,0.15429375,95930.0,95926.0,0.04430074]
[1735204126854,0.15429375,95930.0,95926.0,0.00256374]
[1735204127059,0.15429375,95930.0,95927.0,0.041736]
[1735204127365,0.15429375,95930.0,95928.0,0.0496]
[1735204127760,0.18485742,95935.0,95928.0,0.0496]
[1735204127761,0.15429375,95934.0,95929.0,0.0535]
[1735204128069,0.15429375,95934.0,95933.0,0.041734]
[1735204129066,0.15429375,95938.0,95936.0,0.041732]
[1735204129266,0.15429375,95938.0,95937.0,0.0499]
[1735204130168,0.15429375,95944.0,95937.0,0.0499]
[1735204130368,0.12375509,95938.0,95937.0,0.0499]
[1735204130768,0.12775509,95938.0,95937.0,0.0499]
[1735204131169,0.12375509,95939.0,95937.0,0.0499]
[1735204132359,0.12375509,95938.0,95937.0,0.0499]
[1735204132759,0.12775509,95938.0,95937.0,0.0499]
[1735204133367,0.12375509,95938.0,95937.0,0.0499]
[1735204133560,0.004,95939.0,95937.0,0.0499]
[1735204133961,0.004,95938.0,95937.0,0.0499]
[1735204136560,0.041733,95934.0,95929.0,0.0535]
[1735204136761,0.004,95938.0,95929.0,0.095235]
[1735204137873,0.12381632,95931.0,95929.0,0.095235]
[1735204138973,0.09289293,95932.0,95929.0,0.0535]
[1735204139275,0.09289293,95932.0,95930.0,0.041735]
[1735204140372,0.05071928,95944.0,95929.0,0.0535]
[1735204140373,0.09289293,95934.0,95929.0,0.0535]
[1735204140673,0.09289293,95934.0,95933.0,0.041734]
[1735204141074,0.01169293,95934.0,95933.0,0.041734]
[1735204141874,0.12381632,95942.0,95941.0,0.04173]
[1735204142866,0.04261632,95942.0,95941.0,0.04173]
[1735204143076,0.04261632,95946.0,95934.0,0.18740808]
[1735204143275,0.04261632,95946.0,95945.0,0.041729]
[1735204144179,0.04561632,95946.0,95945.0,0.041729]
[1735204144381,0.003,95946.0,95945.0,0.041729]
[1735204144981,0.00156407,95948.0,95940.0,0.18740808]
[1735204145173,0.005,95946.0,95945.0,0.042729]
[1735204147272,0.00156407,95948.0,95940.0,0.01002351]
[1735204147273,0.00656407,95948.0,95947.0,0.041728]
[1735204147783,0.00156407,95948.0,95947.0,0.041728]
[1735204149483,0.00356407,95948.0,95947.0,0.041728]
[1735204149967,0.00156407,95948.0,95947.0,0.041728]
[1735204150168,0.00256407,95948.0,95947.0,0.041728]
[1735204151173,0.00256407,95948.0,95947.0,0.05160001]
[1735204152669,0.15429375,95960.0,95959.0,0.041722]
[1735204154186,0.15929375,95960.0,95959.0,0.041722]
[1735204154375,0.005,95960.0,95959.0,0.041722]
[1735204156478,0.005,95960.0,95938.0,0.22913908]
[1735204156479,0.305,95960.0,95938.0,0.18740808]
[1735204156782,0.10476328,95948.0,95940.0,0.041731]
[1735204156968,0.0963,95947.0,95940.0,0.041731]
[1735204157376,0.0963,95947.0,95945.0,0.041728]
[1735204158076,0.0474,95947.0,95945.0,0.041728]
[1735204158280,0.0489,95959.0,95940.0,0.002]
[1735204159086,0.15511593,95957.0,95956.0,0.041724]
[1735204160273,0.0489,95959.0,95957.0,0.041723]
[1735204161182,0.16786879,95961.0,95960.0,0.041722]
[1735204161183,0.15511593,95961.0,95960.0,0.041722]
[1735204161588,0.0474,95962.0,95960.0,0.041722]
[1735204163080,0.004,95961.0,95960.0,0.042722]
[1735204163692,0.0514,95962.0,95960.0,0.042722]
[1735204164273,0.004,95961.0,95960.0,0.042722]
[1735204165785,0.0474,95962.0,95960.0,0.041722]
[1735204165986,0.0514,95962.0,95960.0,0.042722]
[1735204166383,0.004,95961.0,95960.0,0.042722]
[1735204166988,0.004,95962.0,95961.0,0.041722]
[1735204167581,0.15519994,95963.0,95961.0,0.041722]
[1735204167988,0.23505742,95969.0,95963.0,0.041721]
[1735204167989,0.15519994,95964.0,95963.0,0.041721]
[1735204169491,0.15519994,95965.0,95963.0,0.041721]
[1735204169689,0.15519994,95965.0,95963.0,0.042721]
[1735204169690,0.004,95964.0,95963.0,0.042721]
[1735204170785,0.15919994,95964.0,95963.0,0.042721]
[1735204171687,0.15919994,95964.0,95963.0,0.05514737]
[1735204173505,0.004,95964.0,95963.0,0.05514737]
[1735204176587,0.004,95964.0,95963.0,0.042721]
[1735204177191,0.045721,95964.0,95963.0,0.001]
[1735204177593,0.20092094,95964.0,95963.0,0.001]
[1735204178890,0.21334983,95964.0,95963.0,0.001]
[1735204179092,0.05814989,95964.0,95963.0,0.001]
[1735204179290,0.10886201,95964.0,95963.0,0.001]
[1735204179994,0.05471212,95964.0,95963.0,0.001]
[1735204180491,0.004,95964.0,95963.0,0.001]
[1735204181687,0.05071212,95972.0,95971.0,0.041718]
[1735204181888,0.15535562,95972.0,95971.0,0.041718]
[1735204182881,0.15935562,95972.0,95971.0,0.042718]
[1735204183184,0.004,95972.0,95971.0,0.042718]
[1735204184495,0.004,95972.0,95971.0,0.001]
[1735204184794,0.041722,95962.0,95961.0,0.18740808]
[1735204185583,0.041725,95955.0,95954.0,0.24969773]
[1735204185796,0.041725,95955.0,95954.0,0.17229773]
[1735204185990,0.041727,95951.0,95940.0,0.041732]
[1735204186193,0.10476328,95950.0,95940.0,0.041732]